bitfinex/quotes_BTCUSD_20230405
["timestamp","ask_amount","ask_price","bid_price","bid_amount"]
[1680712537615,0.76057115,27935.0,27934.0,0.028]
[1680712537828,0.76057115,27935.0,27933.0,0.08559938]
[1680712537829,0.40464456,27935.0,27933.0,0.08559938]
[1680712538028,0.35471056,27935.0,27933.0,0.08559938]
[1680712538374,0.74061381,27935.0,27933.0,0.08559938]
[1680712538622,0.049018,27934.0,27933.0,0.08559938]
[1680712538829,0.35471056,27934.0,27933.0,0.29967381]
[1680712539044,0.35471056,27934.0,27933.0,0.29985381]
[1680712539807,0.71005613,27934.0,27933.0,0.32785381]
[1680712540438,0.71005613,27934.0,27933.0,0.15661772]
[1680712540644,0.71005613,27934.0,27933.0,0.32773381]
[1680712540855,0.71005613,27934.0,27933.0,0.32785381]
[1680712541073,0.71005613,27934.0,27933.0,0.19941609]
[1680712541947,0.0003,27935.0,27934.0,0.01941762]
[1680712542155,0.00831681,27936.0,27934.0,0.31912063]
[1680712542374,0.00831681,27936.0,27935.0,0.08562941]
[1680712542375,0.36302737,27936.0,27935.0,0.08562941]
[1680712542583,0.36332737,27936.0,27935.0,0.21407356]
[1680712542805,0.74619955,27936.0,27935.0,0.08562941]
[1680712543442,0.74619955,27936.0,27935.0,0.10962941]
[1680712544314,0.39148899,27936.0,27935.0,0.10962941]
[1680712545346,0.39148899,27936.0,27935.0,0.024]
[1680712545776,0.39148899,27936.0,27935.0,0.10962941]
[1680712545984,0.39148899,27936.0,27935.0,0.024]
[1680712546638,0.74619955,27936.0,27934.0,0.21407356]
[1680712546847,0.74619955,27936.0,27935.0,0.017]
[1680712547060,0.79516355,27936.0,27935.0,0.017]
[1680712547738,0.42302937,27936.0,27935.0,0.017]
[1680712547945,0.46533231,27936.0,27935.0,0.017]
[1680712548153,0.79700271,27936.0,27935.0,0.017]
[1680712548365,0.42302937,27936.0,27935.0,0.017]
[1680712548571,0.8349574,27936.0,27935.0,0.017]
[1680712548777,0.8456954,27936.0,27935.0,0.017]
[1680712548999,0.41229137,27936.0,27935.0,0.017]
[1680712549204,0.87036103,27936.0,27935.0,0.017]
[1680712550097,0.88109903,27936.0,27935.0,0.017]
[1680712550311,0.97135653,27936.0,27935.0,0.017]
[1680712550521,0.51328687,27936.0,27935.0,0.017]
[1680712550724,0.42302937,27936.0,27935.0,0.017]
[1680712551650,0.86147633,27936.0,27935.0,0.017]
[1680712551873,0.42302937,27936.0,27935.0,0.017]
[1680712552096,0.82250163,27936.0,27935.0,0.017]
[1680712552560,0.83323963,27936.0,27935.0,0.017]
[1680712552786,0.88521463,27936.0,27935.0,0.017]
[1680712553631,0.81566913,27936.0,27935.0,0.017]
[1680712554463,0.81525611,27936.0,27935.0,0.017]
[1680712554673,0.80451811,27936.0,27935.0,0.017]
[1680712557499,0.80481811,27936.0,27935.0,0.017]
[1680712557740,0.80451811,27936.0,27935.0,0.017]
[1680712558157,0.80319811,27936.0,27935.0,0.017]
[1680712558566,0.80319811,27936.0,27935.0,0.10262941]
[1680712559043,0.75254311,27936.0,27935.0,0.10262941]
[1680712560369,0.36291435,27936.0,27935.0,0.10262941]
[1680712560577,0.36291435,27936.0,27935.0,0.31694253]
[1680712560791,0.36291435,27936.0,27935.0,0.18843886]
[1680712560991,0.36291435,27936.0,27935.0,0.18831886]
[1680712561579,0.36291435,27936.0,27935.0,0.18843886]
[1680712562056,0.36321435,27936.0,27935.0,0.00688277]
[1680712562259,0.36291435,27936.0,27935.0,0.13556681]
[1680712562473,0.36321435,27936.0,27935.0,0.01516377]
[1680712562683,0.00820379,27936.0,27935.0,0.02354316]
[1680712562963,0.00820379,27936.0,27935.0,0.008281]
[1680712563193,0.02615529,27941.0,27935.0,0.71841856]
[1680712563441,0.02615529,27941.0,27939.0,0.21444213]
[1680712563652,0.02645529,27941.0,27940.0,0.008799]
[1680712563865,0.82741631,27941.0,27939.0,0.21444213]
[1680712564072,0.82711631,27941.0,27939.0,0.21462213]
[1680712564283,0.82711631,27941.0,27940.0,0.2143889]
[1680712564926,0.38086585,27941.0,27940.0,0.0857232]
[1680712565563,0.39260185,27941.0,27940.0,0.0857232]
[1680712565773,0.83971895,27941.0,27940.0,0.0857232]
[1680712565988,0.88967095,27941.0,27940.0,0.021]
[1680712567270,0.84071895,27941.0,27940.0,0.021]
[1680712567687,0.88973495,27941.0,27940.0,0.021]
[1680712568977,0.38180585,27941.0,27940.0,0.021]
[1680712569217,0.38180585,27941.0,27940.0,0.03915479]
[1680712569646,0.38180585,27941.0,27940.0,0.021]
[1680712573930,0.02709529,27941.0,27940.0,0.04067681]
[1680712574308,0.02709529,27941.0,27940.0,0.12640001]
[1680712574546,0.02709529,27941.0,27940.0,0.04067681]
[1680712577739,0.02709529,27941.0,27940.0,0.021]
[1680712579037,0.38180585,27941.0,27940.0,0.021]
[1680712583475,0.37680585,27941.0,27940.0,0.021]
[1680712586853,0.02209529,27941.0,27940.0,0.2649028]
[1680712587056,0.02209529,27941.0,27940.0,0.17402385]
[1680712587259,0.02209529,27941.0,27940.0,0.4453832]
[1680712587662,0.02209529,27941.0,27940.0,0.3167175]
[1680712587914,0.02109529,27941.0,27940.0,0.28019535]
[1680712588077,0.02109529,27941.0,27940.0,0.29667072]
[1680712588254,0.02109529,27941.0,27940.0,0.32485072]
[1680712588682,0.02109529,27941.0,27940.0,0.20819535]
[1680712588894,0.02109529,27941.0,27940.0,0.35236005]
[1680712589107,0.02109529,27941.0,27940.0,0.35137423]
[1680712590181,0.02109529,27941.0,27940.0,0.20819535]
[1680712591257,0.02109529,27941.0,27940.0,0.55127813]
[1680712591472,0.02109529,27941.0,27940.0,0.336836]
[1680712591680,0.02109529,27941.0,27940.0,0.78926803]
[1680712591894,0.02109529,27941.0,27940.0,0.79776803]
[1680712592518,0.02109529,27941.0,27940.0,0.76976803]
[1680712592719,0.02109529,27941.0,27940.0,0.79776803]
[1680712592927,0.02109529,27941.0,27940.0,0.76976803]
[1680712593134,0.02109529,27941.0,27940.0,0.79776803]
[1680712594541,0.02365,27944.0,27940.0,0.78744051]
[1680712594542,5.29e-06,27944.0,27940.0,0.78744051]
[1680712594764,5.29e-06,27944.0,27941.0,1.01744887]
[1680712594988,5.29e-06,27944.0,27943.0,0.21376509]
[1680712595202,5.29e-06,27944.0,27943.0,0.76093203]
[1680712595909,5.29e-06,27944.0,27943.0,0.78043203]
[1680712596140,5.29e-06,27944.0,27943.0,0.89432884]
[1680712596357,0.02395,27951.0,27943.0,0.89432884]
[1680712596358,0.02365,27951.0,27943.0,0.95678451]
[1680712596570,0.02365,27951.0,27949.0,0.08538679]
[1680712596773,0.02365,27951.0,27950.0,0.14189681]
[1680712596989,0.02365,27951.0,27950.0,0.59189681]
[1680712597198,0.02365,27951.0,27950.0,1.03199416]
[1680712597415,0.02365,27956.0,27950.0,1.03199416]
[1680712597416,0.44004696,27958.0,27950.0,0.82566414]
[1680712597654,0.44004696,27958.0,27951.0,0.14189681]
[1680712597655,0.3891287,27956.0,27951.0,0.14189681]
[1680712597870,0.35471056,27957.0,27950.0,0.30018]
[1680712597871,0.76773102,27955.0,27950.0,0.30018]
[1680712598077,0.35471056,27955.0,27951.0,0.3]
[1680712598293,0.35471056,27955.0,27951.0,0.00018]
[1680712598506,0.35471056,27955.0,27951.0,0.028]
[1680712598717,0.35471056,27955.0,27950.0,0.01824366]
[1680712598926,0.35471056,27955.0,27951.0,0.028]
[1680712599336,8.58e-05,27951.0,27949.0,0.30018]
[1680712599555,8.58e-05,27951.0,27948.0,0.08539106]
[1680712599556,8.58e-05,27951.0,27950.0,0.308013]
[1680712599767,8.58e-05,27951.0,27950.0,0.008013]
[1680712600189,8.58e-05,27951.0,27950.0,0.36272356]
[1680712600393,8.58e-05,27951.0,27950.0,0.67122356]
[1680712601083,8.58e-05,27951.0,27950.0,0.308013]
[1680712601509,8.58e-05,27951.0,27950.0,0.336013]
[1680712602335,8.58e-05,27951.0,27950.0,0.308013]
[1680712602752,8.58e-05,27951.0,27950.0,0.008013]
[1680712602955,8.58e-05,27951.0,27950.0,0.036013]
[1680712603608,8.58e-05,27951.0,27950.0,0.39072356]
[1680712603820,8.58e-05,27951.0,27950.0,0.37122356]
[1680712604025,8.58e-05,27951.0,27950.0,1.02810356]
[1680712604227,8.58e-05,27951.0,27950.0,1.06474013]
[1680712604438,5.8e-06,27951.0,27950.0,1.03179938]
[1680712604657,5.8e-06,27951.0,27950.0,1.21066938]
[1680712604868,5.8e-06,27951.0,27950.0,1.43882317]
[1680712605083,5.8e-06,27951.0,27950.0,1.25335619]
[1680712605322,0.02365,27961.0,27950.0,1.08258261]
[1680712605323,0.02386,27961.0,27950.0,1.08258261]
[1680712605531,0.02365,27961.0,27957.0,0.17883]
[1680712605765,0.02365,27961.0,27958.0,0.49660737]
[1680712606003,0.02365,27961.0,27960.0,0.15]
[1680712606204,0.02365,27961.0,27960.0,0.50471056]
[1680712606411,0.02365,27961.0,27960.0,0.81321056]
[1680712606834,0.02365,27961.0,27960.0,0.66321056]
[1680712608359,0.02365,27961.0,27960.0,0.72610819]
[1680712608790,0.02365,27961.0,27960.0,0.71834262]
[1680712608995,0.02386,27961.0,27960.0,0.38313206]
[1680712609210,0.02386,27961.0,27960.0,0.35513206]
[1680712609417,0.02386,27961.0,27960.0,0.06445806]
[1680712609624,0.02386,27961.0,27960.0,0.06379306]
[1680712610041,0.02386,27961.0,27960.0,0.41850362]
[1680712610249,0.02386,27961.0,27960.0,0.69826919]
[1680712610453,0.02365,27961.0,27960.0,0.72626919]
[1680712610658,0.02365,27961.0,27960.0,0.73476919]
[1680712611085,0.02365,27961.0,27960.0,0.70676919]
[1680712611439,0.02365,27961.0,27960.0,0.73476919]
[1680712612663,0.02365,27961.0,27960.0,0.75469251]
[1680712612885,0.02365,27961.0,27960.0,0.73476919]
[1680712613081,0.02365,27961.0,27960.0,0.75132862]
[1680712613461,0.02386,27961.0,27960.0,0.38811806]
[1680712613690,0.02386,27961.0,27960.0,0.07945706]
[1680712613906,0.02386,27961.0,27960.0,0.06289763]
[1680712613907,0.02365,27961.0,27960.0,0.06289763]
[1680712614116,0.02386,27961.0,27960.0,0.06289763]
[1680712614754,0.02386,27961.0,27960.0,0.03489763]
[1680712614970,0.02386,27961.0,27954.0,0.3]
[1680712615182,0.13591089,27960.0,27958.0,0.01874009]
[1680712615396,0.00021,27960.0,27956.0,0.01890284]
[1680712615615,0.13612089,27960.0,27956.0,0.01890284]
[1680712616094,0.13612089,27960.0,27954.0,0.02034311]
[1680712616095,0.00021,27960.0,27954.0,0.02034311]
[1680712616297,0.00021,27960.0,27950.0,0.03663657]
[1680712616298,0.13612089,27960.0,27957.0,0.02018915]
[1680712616510,0.046329,27959.0,27957.0,0.02018915]
[1680712616725,0.051252,27960.0,27957.0,0.02018915]
[1680712617557,0.051252,27960.0,27950.0,0.00018]
[1680712617768,0.47341636,27959.0,27951.0,0.35471056]
[1680712617977,0.47341636,27959.0,27956.0,0.028]
[1680712618191,0.38729547,27959.0,27956.0,0.028]
[1680712618621,0.74200603,27959.0,27953.0,0.00018]
[1680712618831,0.02386,27961.0,27953.0,0.00018]
[1680712618832,0.02386,27961.0,27957.0,0.028]
[1680712619046,0.02386,27961.0,27954.0,0.49660737]
[1680712619047,0.02386,27961.0,27958.0,0.80428608]
[1680712619048,0.02365,27961.0,27958.0,0.80428608]
[1680712619481,0.02365,27961.0,27958.0,0.66256927]
[1680712619935,0.02365,27961.0,27959.0,0.15]
[1680712620150,0.02365,27961.0,27959.0,0.15018]
[1680712620355,0.02365,27961.0,27960.0,0.3777051]
[1680712620577,0.02365,27961.0,27960.0,0.3778851]
[1680712620785,0.02365,27961.0,27960.0,0.35489056]
[1680712620994,0.02365,27961.0,27960.0,0.38106304]
[1680712621210,0.02365,27961.0,27960.0,0.38118304]
[1680712621412,0.02365,27961.0,27960.0,0.36339056]
[1680712622045,0.02365,27961.0,27960.0,1.03700616]
[1680712622253,0.02365,27961.0,27960.0,0.66339056]
[1680712623107,0.02365,27961.0,27960.0,0.69139056]
[1680712623315,0.02365,27961.0,27960.0,0.66339056]
[1680712623520,0.02365,27961.0,27960.0,0.66333056]
[1680712623767,0.02365,27961.0,27960.0,0.66339056]
[1680712623970,0.02365,27961.0,27960.0,0.69139056]
[1680712625441,0.02365,27964.0,27960.0,0.69139056]
[1680712625442,0.00015,27966.0,27960.0,0.69133056]
[1680712625658,0.37700121,27971.0,27961.0,0.80510737]
[1680712625860,0.42280522,27969.0,27962.0,0.29189681]
[1680712626067,0.42301522,27969.0,27963.0,0.3]
[1680712626336,0.42301522,27969.0,27964.0,0.14189681]
[1680712626546,0.33888274,27968.0,27964.0,0.14189681]
[1680712626753,0.33909274,27968.0,27963.0,0.3]
[1680712626960,0.00021,27968.0,27963.0,0.3]
[1680712627167,0.41858154,27969.0,27964.0,0.028]
[1680712627367,0.41858154,27969.0,27964.0,0.16989681]
[1680712627789,0.41858154,27969.0,27965.0,0.30914421]
[1680712628418,0.40723024,27968.0,27965.0,0.30914421]
[1680712628623,0.40744024,27968.0,27965.0,0.30914421]
[1680712629477,0.40744024,27968.0,27965.0,0.33714421]
[1680712629689,0.55528456,27967.0,27965.0,0.028]
[1680712629904,0.048416,27966.0,27965.0,0.028]
[1680712630134,0.048626,27966.0,27965.0,0.028]
[1680712630351,0.46952733,27966.0,27965.0,0.028]
[1680712630796,0.46952733,27966.0,27963.0,0.17613854]
[1680712631002,0.052164,27965.0,27963.0,0.17613854]
[1680712631229,0.00021,27965.0,27963.0,0.17613854]
[1680712632376,0.00021,27965.0,27963.0,0.20413854]
[1680712633235,0.3851491,27965.0,27963.0,0.20413854]
[1680712633667,0.3851491,27965.0,27963.0,0.028]
[1680712635174,0.00021,27965.0,27963.0,0.16989681]
[1680712635392,0.35705,27971.0,27964.0,0.33730385]
[1680712635393,0.00021,27968.0,27964.0,0.33730385]
[1680712635604,0.34393318,27968.0,27965.0,0.15321207]
[1680712636499,0.00021,27968.0,27965.0,0.15321207]
[1680712636925,0.00021,27968.0,27965.0,0.18121207]
[1680712637139,0.00021,27968.0,27966.0,0.008782]
[1680712637810,0.03365,27971.0,27963.0,0.00018]
[1680712637811,0.41048737,27967.0,27963.0,0.00018]
[1680712638038,0.41048737,27967.0,27960.0,0.022931]
[1680712638039,0.55878956,27966.0,27960.0,0.022931]
[1680712638276,0.11156581,27965.0,27960.0,0.022751]
[1680712638500,0.40537856,27964.0,27960.0,0.022751]
[1680712638725,0.35471056,27964.0,27961.0,0.23806687]
[1680712638938,0.35471056,27964.0,27961.0,0.23824687]
[1680712639431,0.00321,27964.0,27961.0,0.23806687]
[1680712639666,0.003,27964.0,27961.0,0.23806687]
[1680712639884,0.32286996,27965.0,27961.0,0.23806687]
[1680712640104,0.003,27964.0,27961.0,0.24506687]
[1680712640322,0.3254,27970.0,27961.0,0.23806687]
[1680712640323,0.32624827,27967.0,27961.0,0.23806687]
[1680712640549,0.68116883,27967.0,27961.0,0.37996368]
[1680712640768,0.68116883,27967.0,27962.0,0.09545233]
[1680712640977,0.8223182,27966.0,27962.0,0.09545233]
[1680712641192,0.7705142,27966.0,27962.0,0.09545233]
[1680712641884,0.052646,27965.0,27962.0,0.09545233]
[1680712642096,0.35771056,27964.0,27962.0,0.09545233]
[1680712642519,0.35471056,27964.0,27962.0,0.09545233]
[1680712642728,0.35471056,27964.0,27962.0,0.10245233]
[1680712643371,0.45483448,27965.0,27962.0,0.09545233]
[1680712643809,0.053048,27964.0,27962.0,0.09545233]
[1680712644021,0.003,27964.0,27962.0,0.10245233]
[1680712644224,0.003,27964.0,27963.0,0.20844873]
[1680712644441,0.3868,27969.0,27963.0,0.20844873]
[1680712644442,0.36723812,27966.0,27963.0,0.20844873]
[1680712644650,0.36744812,27966.0,27963.0,0.20844873]
[1680712644884,0.051887,27965.0,27963.0,0.01224928]
[1680712645098,0.051887,27965.0,27960.0,0.15255573]
[1680712645099,0.4884962,27965.0,27960.0,0.15255573]
[1680712645316,0.49238601,27965.0,27960.0,0.03849788]
[1680712645568,0.49238601,27965.0,27960.0,0.16639366]
[1680712645785,0.4366092,27965.0,27960.0,0.16639366]
[1680712646002,0.4366092,27965.0,27961.0,0.03324748]
[1680712646218,0.4396092,27965.0,27962.0,0.007]
[1680712646429,0.4366092,27965.0,27961.0,0.03324748]
[1680712646633,0.4396092,27965.0,27961.0,0.03324748]
[1680712646892,0.35110105,27964.0,27961.0,0.03324748]
[1680712647075,0.35131105,27964.0,27962.0,0.007]
[1680712647948,0.35131105,27964.0,27961.0,0.03324748]
[1680712648154,0.35131105,27964.0,27961.0,0.04024748]
[1680712648361,0.35131105,27964.0,27961.0,0.16814326]
[1680712648789,0.00021,27964.0,27961.0,0.16814326]
[1680712648968,0.003,27965.0,27961.0,0.16814326]
[1680712649426,0.003,27964.0,27962.0,0.05292619]
[1680712649634,0.45746538,27966.0,27962.0,0.04592619]
[1680712650041,0.003,27965.0,27961.0,0.00538674]
[1680712650248,0.37602863,27964.0,27961.0,0.00538674]
[1680712650446,0.37623863,27964.0,27961.0,0.17591445]
[1680712650632,0.37623863,27964.0,27961.0,0.17052771]
[1680712650878,0.00021,27964.0,27962.0,0.006]
[1680712651082,0.40802251,27966.0,27962.0,0.006]
[1680712651288,0.76273307,27966.0,27962.0,0.006]
[1680712652329,0.0137824,27965.0,27962.0,0.14189681]
[1680712652536,0.0137824,27965.0,27961.0,0.38368735]
[1680712652745,0.0139924,27965.0,27961.0,0.38368735]
[1680712652960,0.003,27964.0,27962.0,0.17052771]
[1680712653174,0.0137824,27965.0,27962.0,0.17052771]
[1680712653559,0.0137824,27965.0,27962.0,0.17652771]
[1680712653560,0.0167824,27965.0,27962.0,0.17652771]
[1680712654187,0.0167824,27965.0,27962.0,0.17052771]
[1680712654188,0.0137824,27965.0,27962.0,0.17052771]
[1680712654636,0.0137824,27965.0,27962.0,0.38368735]
[1680712654870,0.0137824,27965.0,27962.0,0.17052771]
[1680712655066,0.0137824,27965.0,27964.0,0.08562807]
[1680712655697,0.34405303,27964.0,27963.0,0.08562807]
[1680712656309,0.00021,27965.0,27963.0,0.08562807]
[1680712656512,0.003,27965.0,27964.0,0.006]
[1680712656719,0.36199452,27966.0,27963.0,0.08562996]
[1680712657358,0.003,27964.0,27963.0,0.09162996]
[1680712658400,0.41171111,27968.0,27962.0,0.17052771]
[1680712658582,0.41171111,27968.0,27964.0,0.08562777]
[1680712658583,0.41242075,27965.0,27964.0,0.08562777]
[1680712658817,0.41242075,27965.0,27963.0,0.09162777]
[1680712658818,0.43239225,27965.0,27963.0,0.09162777]
[1680712659023,0.057087,27964.0,27963.0,0.09162777]
[1680712659228,0.37840425,27965.0,27963.0,0.08562777]
[1680712659431,0.00021,27966.0,27963.0,0.09162777]
[1680712659639,0.00021,27968.0,27963.0,0.21407537]
[1680712659852,2.00885,27971.0,27963.0,0.21407537]
[1680712659853,0.003,27965.0,27963.0,0.36497218]
[1680712660062,0.41787318,27968.0,27963.0,0.21407537]
[1680712660267,0.41787318,27968.0,27963.0,0.35597218]
[1680712660693,0.44115509,27967.0,27963.0,0.21407537]
[1680712660905,0.44136509,27967.0,27964.0,0.08562777]
[1680712661120,0.003,27966.0,27964.0,0.08562777]
[1680712661324,0.054233,27966.0,27964.0,0.08562777]
[1680712661946,0.44136509,27967.0,27964.0,0.08562777]
[1680712662155,0.057973,27966.0,27964.0,0.09462777]
[1680712662361,0.01369865,27965.0,27964.0,0.09462777]
[1680712663408,0.01369865,27965.0,27964.0,0.1374476]
[1680712664190,0.01369865,27965.0,27964.0,0.1284476]
[1680712664599,0.01669865,27965.0,27964.0,0.1374476]
[1680712666174,0.01669865,27965.0,27964.0,0.30797531]
[1680712666608,0.01669865,27965.0,27964.0,0.30807926]
[1680712666850,0.01669865,27965.0,27964.0,0.17952771]
[1680712667315,0.01669865,27965.0,27964.0,0.10610946]
[1680712668188,0.01669865,27965.0,27964.0,0.65326984]
[1680712668189,0.01369865,27965.0,27964.0,0.65326984]
[1680712668427,0.03365,27971.0,27965.0,0.15]
[1680712668649,0.03365,27971.0,27969.0,0.21422018]
[1680712668861,0.03365,27971.0,27969.0,0.22758488]
[1680712668862,0.03386,27971.0,27969.0,0.22758488]
[1680712669069,0.03386,27971.0,27969.0,0.08568807]
[1680712669267,0.01730447,27970.0,27969.0,0.08568807]
[1680712670409,0.75814908,27970.0,27969.0,0.027]
[1680712670615,0.75814908,27970.0,27968.0,0.21440018]
[1680712671048,0.75814908,27970.0,27968.0,0.08586807]
[1680712671257,0.7627136,27970.0,27969.0,0.027]
[1680712671460,0.7627136,27970.0,27968.0,0.21440018]
[1680712671672,0.7627136,27970.0,27968.0,0.24240018]
[1680712671875,0.7627136,27970.0,27968.0,0.21440018]
[1680712672087,0.7627136,27970.0,27968.0,0.08586807]
[1680712672319,0.7627136,27970.0,27968.0,0.08580807]
[1680712672733,0.7627136,27970.0,27968.0,0.08568807]
[1680712672942,0.7627136,27970.0,27969.0,0.027]
[1680712673573,0.7627136,27970.0,27968.0,0.08586807]
[1680712673795,0.7627136,27970.0,27968.0,0.08568807]
[1680712673997,0.40800304,27970.0,27968.0,0.08568807]
[1680712674207,0.40800304,27970.0,27968.0,0.11368807]
[1680712674415,0.40800304,27970.0,27968.0,0.11380807]
[1680712675863,0.33213386,27969.0,27968.0,0.11380807]
[1680712676075,0.33213386,27969.0,27968.0,0.02818]
[1680712676285,0.33213386,27969.0,27968.0,0.028]
[1680712676903,0.33213386,27969.0,27967.0,0.08586807]
[1680712677111,0.33213386,27969.0,27967.0,0.00018]
[1680712677592,0.33213386,27969.0,27968.0,0.028]
[1680712678143,0.34764023,27969.0,27968.0,0.028]
[1680712678544,0.34764023,27969.0,27967.0,0.00018]
[1680712678746,0.35471056,27968.0,27967.0,0.028]
[1680712678943,0.35471056,27968.0,27965.0,0.25712422]
[1680712678944,0.40592956,27968.0,27965.0,0.08586807]
[1680712679142,0.40592956,27968.0,27964.0,0.12853211]
[1680712679143,0.051911,27967.0,27964.0,0.08586807]
[1680712679373,0.35471056,27966.0,27964.0,0.08586807]
[1680712679716,0.50174897,27965.0,27964.0,0.08586807]
[1680712680362,0.44831797,27965.0,27964.0,0.08586807]
[1680712680610,0.50232597,27965.0,27964.0,0.10686807]
[1680712680819,0.44831797,27965.0,27964.0,0.10686807]
[1680712681726,0.44831797,27965.0,27962.0,0.00018]
[1680712681727,0.60556722,27965.0,27962.0,0.00018]
[1680712681939,0.60556722,27965.0,27956.0,0.00904187]
[1680712681940,0.60556722,27965.0,27959.0,0.00012]
[1680712681941,0.38689456,27963.0,27959.0,0.00012]
[1680712682150,0.38689456,27963.0,27956.0,0.29961237]
[1680712682151,0.15,27960.0,27956.0,0.29961237]
[1680712682375,0.35471056,27957.0,27956.0,0.00018]
[1680712682609,0.35471056,27957.0,27950.0,0.25616038]
[1680712682610,0.053655,27956.0,27952.0,0.00018]
[1680712682822,0.46085637,27955.0,27953.0,0.05399388]
[1680712683034,0.049794,27954.0,27953.0,0.05399388]
[1680712683250,0.40471456,27954.0,27953.0,0.05399388]
[1680712684959,0.40471456,27954.0,27952.0,0.009]
[1680712685175,0.40483356,27953.0,27952.0,0.009]
[1680712685388,0.40504356,27953.0,27952.0,0.009]
[1680712685594,0.40504356,27953.0,27950.0,0.1284053]
[1680712685595,0.36565256,27953.0,27950.0,0.29035232]
[1680712685802,0.36565256,27953.0,27949.0,0.29973237]
[1680712685803,0.052493,27952.0,27949.0,0.29973237]
[1680712686014,0.44268637,27951.0,27949.0,0.1284053]
[1680712686222,0.10597104,27950.0,27949.0,0.1284053]
[1680712686437,0.4606816,27950.0,27949.0,0.1284053]
[1680712686646,0.35471056,27950.0,27949.0,0.1284053]
[1680712686853,0.35471056,27950.0,27949.0,0.17120707]
[1680712687913,0.35471056,27950.0,27948.0,0.25007098]
[1680712688322,0.35471056,27950.0,27949.0,0.23083164]
[1680712688536,0.35471056,27950.0,27949.0,0.23095164]
[1680712689212,0.35671056,27950.0,27949.0,0.23895164]
[1680712689426,0.35471056,27950.0,27949.0,0.35912057]
[1680712689630,0.35771056,27950.0,27949.0,0.36712057]
[1680712689836,0.35471056,27950.0,27949.0,0.35912057]
[1680712690068,0.35671056,27950.0,27949.0,0.36712057]
[1680712690283,0.35671056,27950.0,27949.0,0.13634893]
[1680712690284,0.002,27950.0,27949.0,0.13634893]
[1680712690490,0.3018,27956.0,27949.0,0.13634893]
[1680712690491,0.00021,27955.0,27949.0,0.21400883]
[1680712690702,0.003,27950.0,27949.0,0.17879617]
[1680712690919,0.35492056,27955.0,27949.0,0.17079617]
[1680712691132,0.002,27950.0,27949.0,0.17879617]
[1680712691354,0.002,27950.0,27949.0,0.21297399]
[1680712692407,0.41939792,27954.0,27950.0,0.15]
[1680712692583,0.00021,27954.0,27951.0,0.21346062]
[1680712692891,0.3832696,27956.0,27952.0,0.15]
[1680712693097,0.3832696,27956.0,27952.0,0.29189681]
[1680712693098,0.3834796,27956.0,27952.0,0.29189681]
[1680712693301,0.01389935,27953.0,27952.0,0.29189681]
[1680712693512,0.01389935,27953.0,27952.0,0.15]
[1680712693717,0.01389935,27953.0,27952.0,0.27807637]
[1680712694340,0.192906,27968.0,27952.0,0.27807637]
[1680712694341,0.00021,27960.0,27952.0,0.82565737]
[1680712694556,0.00021,27967.0,27958.0,0.08533711]
[1680712694786,0.00021,27967.0,27959.0,0.58194448]
[1680712694787,0.33361819,27966.0,27959.0,0.58194448]
[1680712695000,0.33361819,27966.0,27960.0,0.15]
[1680712695001,0.33382819,27966.0,27960.0,0.15]
[1680712695231,0.00021,27966.0,27961.0,0.49660737]
[1680712695426,0.01413493,27966.0,27962.0,0.3]
[1680712695686,0.01434493,27966.0,27962.0,0.44189681]
[1680712695901,0.01413493,27966.0,27963.0,0.15]
[1680712696326,0.01713493,27966.0,27963.0,0.15]
[1680712696565,0.01413493,27966.0,27963.0,0.15]
[1680712696794,0.01713493,27966.0,27963.0,0.15]
[1680712697411,0.003,27966.0,27963.0,0.15]
[1680712697844,0.003,27966.0,27964.0,0.26674592]
[1680712698258,0.003,27966.0,27963.0,0.15]
[1680712698464,0.38848034,27971.0,27963.0,0.15]
[1680712698671,0.003,27966.0,27964.0,0.41441377]
[1680712698935,0.003,27966.0,27964.0,0.27251696]
[1680712699184,0.00021,27968.0,27963.0,0.15]
[1680712699395,0.01412086,27965.0,27964.0,0.27297887]
[1680712699597,0.01412086,27965.0,27964.0,0.25684577]
[1680712699806,0.01412086,27965.0,27964.0,0.25784577]
[1680712699992,0.01412086,27965.0,27964.0,0.001]
[1680712700197,0.00021,27968.0,27963.0,0.50471056]
[1680712700449,0.003,27965.0,27964.0,0.001]
[1680712701082,0.00306,27965.0,27964.0,0.25617117]
[1680712701331,0.00021,27969.0,27964.0,0.40617117]
[1680712701545,0.00021,27969.0,27965.0,0.15]
[1680712702606,0.33848683,27969.0,27965.0,0.15]
[1680712702789,0.34148683,27969.0,27965.0,0.15]
[1680712703070,0.00021,27969.0,27965.0,0.15]
[1680712703290,0.003,27969.0,27966.0,0.24525731]
[1680712703502,0.00321,27969.0,27966.0,0.24525731]
[1680712703917,0.003,27969.0,27966.0,0.24525731]
[1680712704334,0.00321,27969.0,27966.0,0.24525731]
[1680712704540,0.00021,27969.0,27966.0,0.24525731]
[1680712704977,0.00021,27969.0,27966.0,0.59996787]
[1680712705200,0.003,27969.0,27967.0,0.74004767]
[1680712705417,0.01104267,27971.0,27968.0,0.37184278]
[1680712705636,0.01104267,27971.0,27969.0,0.65471056]
[1680712705849,0.01104267,27971.0,27970.0,0.1]
[1680712706062,0.01104267,27971.0,27970.0,0.45471056]
[1680712706314,0.01104267,27971.0,27970.0,0.75471056]
[1680712707287,0.01104267,27971.0,27970.0,0.84004767]
[1680712707288,4.267e-05,27971.0,27970.0,0.84004767]
[1680712707765,4.267e-05,27971.0,27970.0,0.75471056]
[1680712708469,4.267e-05,27971.0,27970.0,0.76321056]
[1680712708883,4.267e-05,27971.0,27970.0,0.80906304]
[1680712709084,4.267e-05,27971.0,27970.0,0.78106304]
[1680712709258,4.267e-05,27971.0,27970.0,0.6098485]
[1680712709510,4.267e-05,27971.0,27970.0,0.5818485]
[1680712709726,4.267e-05,27971.0,27970.0,0.7598485]
[1680712710145,4.267e-05,27971.0,27970.0,0.7318485]
[1680712710353,4.267e-05,27971.0,27970.0,0.7233485]
[1680712710561,4.267e-05,27971.0,27970.0,0.55549602]
[1680712711191,4.267e-05,27971.0,27970.0,0.3]
[1680712711405,4.267e-05,27971.0,27970.0,0.38271056]
[1680712711621,4.267e-05,27971.0,27970.0,0.33601776]
[1680712712271,4.267e-05,27971.0,27970.0,0.36401776]
[1680712712479,4.267e-05,27971.0,27970.0,0.33601776]
[1680712712690,4.267e-05,27971.0,27970.0,0.06401776]
[1680712712898,4.267e-05,27971.0,27970.0,0.33601776]
[1680712713103,4.267e-05,27971.0,27970.0,0.36401776]
[1680712713534,4.267e-05,27971.0,27970.0,0.71872832]
[1680712714157,4.267e-05,27971.0,27970.0,0.84072832]
[1680712714362,4.267e-05,27971.0,27970.0,0.86872832]